fUST/lending_fUST_20240723
["ID","MTS","AMOUNT","RATE_DAILY","PERIOD"]
[332909760,1721675452427,-151.0,0.00015709,2]
[332909761,1721675452437,-151.0,0.00015709,2]
[332909762,1721675452447,-151.0,0.00015709,2]
[332909763,1721675452457,-865.880804,0.00015709,2]
[332909764,1721675452467,-865.880804,0.00015709,2]
[332909765,1721675452476,-151.0,0.00015709,2]
[332909766,1721675452487,-151.0,0.00015709,2]
[332909767,1721675452498,-151.0,0.00015709,2]
[332909768,1721675452508,-327.480184,0.00015709,2]
[332909769,1721675452518,-327.480184,0.00015709,2]
[332909770,1721675452527,-151.0,0.00015709,2]
[332909771,1721675452537,-261.367456,0.00015709,2]
[332909772,1721675452547,-261.367456,0.00015709,2]
[332909773,1721675452558,-218.79091,0.00015709,2]
[332909774,1721675452569,-218.79091,0.00015709,2]
[332909775,1721675452579,-151.0,0.00015709,2]
[332909776,1721675452589,-327.919586,0.00015709,2]
[332909777,1721675452599,-327.919586,0.00015709,2]
[332909778,1721675452609,-151.0,0.00015709,2]
[332909779,1721675452618,-151.0,0.00015709,2]
[332909780,1721675452628,-224.50165,0.00015709,2]
[332909781,1721675452640,-224.50165,0.00015709,2]
[332909782,1721675452650,-165.403234,0.00015709,2]
[332909783,1721675452660,-233.885454,0.00015709,2]
[332909784,1721675452671,-233.885454,0.00015709,2]
[332909785,1721675452682,-251.798858,0.00015709,2]
[332909786,1721675452692,-151.0,0.00015709,2]
[332909787,1721675452702,-151.0,0.00015709,2]
[332909788,1721675452714,-251.798858,0.00015709,2]
[332909789,1721675452724,-151.0,0.00015709,2]
[332909790,1721675452734,-151.0,0.00015709,2]
[332909791,1721675452745,-804.0,0.00015838,2]
[332909792,1721675452755,-392.05,0.00015877,2]
[332909793,1721675452765,-500.0,0.00015888,2]
[332909794,1721675452776,-500.0,0.00015888,2]
[332909795,1721675452788,-500.0,0.00015888,2]
[332909796,1721675452798,-1280.12,0.00015889,2]
[332909797,1721675452808,-838.19,0.00015889,2]
[332909798,1721675452819,-789.11,0.00015889,2]
[332909799,1721675452831,-500.0,0.0001589,2]
[332909800,1721675452842,-500.0,0.0001589,2]
[332909801,1721675452853,-500.0,0.0001589,2]
[332909802,1721675452865,-500.0,0.0001589,2]
[332909803,1721675452876,-500.0,0.0001589,2]
[332909804,1721675452887,-500.0,0.0001589,2]
[332909805,1721675452898,-500.0,0.0001589,2]
[332909806,1721675452908,-500.0,0.0001589,2]
[332909807,1721675452919,-500.0,0.0001589,2]
[332909808,1721675452928,-415.36,0.0001589,2]
[332909809,1721675452939,-500.0,0.0001589,2]
[332909810,1721675452950,-997.89,0.0001589,2]
[332909811,1721675452962,-500.0,0.0001589,2]
[332909812,1721675452971,-1938.4,0.0001589,2]
[332909813,1721675452982,-632.02,0.0001589,2]
[332909814,1721675452995,-500.0,0.0001589,2]
[332909815,1721675453007,-500.0,0.0001589,2]
[332909816,1721675453017,-500.0,0.0001589,2]
[332909817,1721675453028,-500.0,0.0001589,2]
[332909818,1721675453039,-500.0,0.0001589,2]
[332909819,1721675453050,-685.58,0.0001589,2]
[332909820,1721675453062,-500.0,0.0001589,2]
[332909821,1721675453071,-500.0,0.0001589,2]
[332909822,1721675453080,-500.0,0.0001589,2]
[332909823,1721675453090,-226.79,0.0001589,2]
[332909824,1721675453102,-500.0,0.0001589,2]
[332909825,1721675453112,-187.47,0.0001589,2]
[332909826,1721675453121,-500.0,0.0001589,2]
[332909827,1721675453132,-500.0,0.0001589,2]
[332909828,1721675453145,-500.0,0.0001589,2]
[332909829,1721675453156,-500.0,0.0001589,2]
[332909830,1721675453166,-500.0,0.0001589,2]
[332909831,1721675453176,-500.0,0.0001589,2]
[332909832,1721675453186,-500.0,0.0001589,2]
[332909833,1721675453197,-500.0,0.0001589,2]
[332909834,1721675453208,-500.0,0.0001589,2]
[332909835,1721675453219,-1886.51,0.0001589,2]
[332909836,1721675453229,-500.0,0.0001589,2]
[332909837,1721675453240,-166.01,0.0001589,2]
[332909838,1721675453253,-500.0,0.0001589,2]
[332909839,1721675453263,-650.38,0.0001589,2]
[332909840,1721675453274,-500.0,0.0001589,2]
[332909841,1721675453284,-293.8749366,0.0001589,2]
[332909842,1721675453294,-187.05326,0.00015946,2]
[332909843,1721675453303,-165.156293,0.00015946,2]
[332909844,1721675453314,-200.0,0.0001599,2]
[332909845,1721675453323,-14437.64528572,0.00016,2]
[332909846,1721675453333,-2000.0,0.00016,3]
[332909847,1721675453343,-2000.0,0.00016,4]
[332909848,1721675453354,-2000.0,0.00016,5]
[332909849,1721675453365,-154.77557542,0.00016,2]
[332909850,1721675453376,-100000.0,0.00016,2]
[332909851,1721675453386,-151.0,0.00016,2]
[332909852,1721675453397,-151.0,0.00016,2]
[332909853,1721675453407,-151.0,0.00016,2]
[332909854,1721675453417,-3000.0,0.00016,2]
[332909855,1721675453426,-1000.0,0.00016,2]
[332909856,1721675453437,-151.0,0.0001601,2]
[332909857,1721675453448,-865.880804,0.0001601,2]
[332909858,1721675453459,-865.880804,0.0001601,2]
[332909859,1721675453469,-3000.0,0.0001601,2]
[332909860,1721675453479,-3000.0,0.0001602,2]
[332909861,1721675453489,-3000.0,0.0001603,2]
[332909862,1721675453500,-3000.0,0.0001604,2]
[332909863,1721675453510,-3000.0,0.0001605,2]
[332909864,1721675453519,-3000.0,0.0001606,2]
[332909865,1721675453529,-3000.0,0.0001607,2]
[332909866,1721675453538,-3000.0,0.0001608,2]
[332909867,1721675453548,-3000.0,0.0001609,2]
[332909868,1721675453558,-30000.0,0.00016094,2]
[332909869,1721675453568,-151.0,0.00016094,2]
[332909870,1721675453577,-151.0,0.00016094,2]
[332909871,1721675453587,-151.0,0.00016094,2]
[332909872,1721675453597,-278.054906,0.00016094,2]
[332909873,1721675453607,-278.054906,0.00016094,2]
[332909874,1721675453617,-151.0,0.00016094,2]
[332909875,1721675453627,-261.367456,0.00016094,2]
[332909876,1721675453636,-261.367456,0.00016094,2]
[332909877,1721675453646,-226.651934,0.00016094,2]
[332909878,1721675453655,-224.50165,0.00016094,2]
[332909879,1721675453665,-224.50165,0.00016094,2]
[332909880,1721675453675,-233.885454,0.00016094,2]
[332909881,1721675453685,-233.885454,0.00016094,2]
[332909882,1721675453695,-251.798858,0.00016094,2]
[332909883,1721675453704,-151.0,0.00016094,2]
[332909884,1721675453714,-151.0,0.00016094,2]
[332909885,1721675453723,-251.798858,0.00016094,2]
[332909886,1721675453734,-218.099786,0.00016094,2]
[332909887,1721675453746,-151.0,0.00016094,2]
[332909888,1721675453755,-3000.0,0.000161,2]
[332909889,1721675453764,-151.0,0.000161,2]
[332909890,1721675453773,-151.0,0.000161,2]
[332909891,1721675453782,-327.480184,0.000161,2]
[332909892,1721675453792,-327.480184,0.000161,2]
[332909893,1721675453802,-151.0,0.000161,2]
[332909894,1721675453812,-218.79091,0.000161,2]
[332909895,1721675453821,-218.79091,0.000161,2]
[332909896,1721675453831,-151.0,0.000161,2]
[332909897,1721675453841,-327.919586,0.000161,2]
[332909898,1721675453850,-327.919586,0.000161,2]
[332909899,1721675453860,-3000.0,0.0001611,2]
[332909900,1721675453869,-3000.0,0.0001612,2]
[332909901,1721675453879,-3000.0,0.0001613,2]
[332909902,1721675453888,-3000.0,0.0001614,2]
[332909903,1721675453898,-3000.0,0.0001615,2]
[332909904,1721675453908,-1000.0,0.00016151,2]
[332909905,1721675453919,-3000.0,0.0001616,2]
[332909906,1721675453928,-431.38518101,0.00016162,2]
[332909907,1721675453938,-500.0,0.00016162,2]
[332909908,1721675453948,-1280.12,0.00016163,2]
[332909909,1721675453958,-838.19,0.00016163,2]
[332909910,1721675453968,-500.0,0.00016163,2]
[332909911,1721675453978,-789.11,0.00016163,2]
[332909912,1721675453988,-176.80675413,0.00016164,2]
[332909913,1721675454000,-630.11,0.00016164,2]
[332909914,1721675454010,-500.0,0.00016164,2]
[332909915,1721675454020,-500.0,0.00016164,2]
[332909916,1721675454030,-500.0,0.00016164,2]
[332909917,1721675454040,-500.0,0.00016164,2]
[332909918,1721675454051,-425.94,0.00016164,2]
[332909919,1721675454061,-500.0,0.00016164,2]
[332909920,1721675454070,-500.0,0.00016164,2]
[332909921,1721675454080,-521.07,0.00016164,2]
[332909922,1721675454089,-500.0,0.00016164,2]
[332909923,1721675454099,-500.0,0.00016164,2]
[332909924,1721675454109,-500.0,0.00016164,2]
[332909925,1721675454118,-826.61,0.00016164,2]
[332909926,1721675454128,-500.0,0.00016164,2]
[332909927,1721675454139,-541.94,0.00016164,2]
[332909928,1721675454151,-500.0,0.00016164,2]
[332909929,1721675454160,-580.89,0.00016164,2]
[332909930,1721675454170,-500.0,0.00016164,2]
[332909931,1721675454180,-500.0,0.00016164,2]
[332909932,1721675454190,-500.0,0.00016164,2]
[332909933,1721675454200,-500.0,0.00016164,2]
[332909934,1721675454209,-500.0,0.00016164,2]
[332909935,1721675454220,-6122.85,0.00016164,2]
[332909936,1721675454229,-500.0,0.00016164,2]
[332909937,1721675454239,-500.0,0.00016164,2]
[332909938,1721675454251,-330.14,0.00016164,2]
[332909939,1721675454261,-500.0,0.00016164,2]
[332909940,1721675454271,-500.0,0.00016164,2]
[332909941,1721675454281,-500.0,0.00016164,2]
[332909942,1721675454291,-500.0,0.00016164,2]
[332909943,1721675454301,-500.0,0.00016164,2]
[332909944,1721675454312,-527.23,0.00016164,2]
[332909945,1721675454322,-1672.06,0.00016164,2]
[332909946,1721675454332,-500.0,0.00016164,2]
[332909947,1721675454342,-500.0,0.00016164,2]
[332909948,1721675454352,-500.0,0.00016164,2]
[332909949,1721675454362,-950.79,0.00016164,2]
[332909950,1721675454371,-500.0,0.00016164,2]
[332909951,1721675454381,-500.0,0.00016164,2]
[332909952,1721675454391,-1806.92,0.00016164,2]
[332909953,1721675454401,-500.0,0.00016164,2]
[332909954,1721675454411,-500.0,0.00016164,2]
[332909955,1721675454422,-500.0,0.00016164,2]
[332909956,1721675454431,-1508.6,0.00016164,2]
[332909957,1721675454441,-500.0,0.00016164,2]
[332909958,1721675454451,-506.88,0.00016164,2]
[332909959,1721675454460,-500.0,0.00016164,2]
[332909960,1721675454470,-500.0,0.00016164,2]
[332909961,1721675454479,-397.50145167,0.00016164,2]
[332909962,1721675454489,-1169.38,0.00016164,2]
[332909963,1721675454500,-500.0,0.00016164,2]
[332909964,1721675454509,-1575.24,0.00016164,2]
[332909965,1721675454519,-500.0,0.00016164,2]
[332909966,1721675454528,-491.18,0.00016164,2]
[332909967,1721675454538,-751.93,0.00016164,2]
[332909968,1721675454548,-500.0,0.00016164,2]
[332909969,1721675454557,-741.15,0.00016164,2]
[332909970,1721675454567,-500.0,0.00016164,2]
[332909971,1721675454577,-500.0,0.00016164,2]
[332909972,1721675454587,-500.0,0.00016164,2]
[332909973,1721675454598,-578.41,0.00016164,2]
[332909974,1721675454608,-1885.83,0.00016164,2]
[332909975,1721675454618,-840.73,0.00016164,2]
[332909976,1721675454627,-500.0,0.00016164,2]
[332909977,1721675454637,-544.38,0.00016164,2]
[332909978,1721675454647,-500.0,0.00016164,2]
[332909979,1721675454657,-500.0,0.00016164,2]
[332909980,1721675454666,-266.98,0.00016164,2]
[332909981,1721675454676,-390.04,0.00016164,2]
[332909982,1721675454686,-500.0,0.00016164,2]
[332909983,1721675454696,-500.0,0.00016164,2]
[332909984,1721675454705,-500.0,0.00016164,2]
[332909985,1721675454715,-997.89,0.00016164,2]
[332909986,1721675454724,-500.0,0.00016164,2]
[332909987,1721675454735,-1938.4,0.00016164,2]
[332909988,1721675454745,-500.0,0.00016164,2]
[332909989,1721675454755,-500.0,0.00016164,2]
[332909990,1721675454764,-162.36235555,0.00016164,2]
[332909991,1721675454775,-500.0,0.00016164,2]
[332909992,1721675454784,-565.8,0.00016164,2]
[332909993,1721675454794,-685.58,0.00016164,2]
[332909994,1721675454805,-500.0,0.00016164,2]
[332909995,1721675454852,-500.0,0.00016164,2]
[332909996,1721675454862,-500.0,0.00016164,2]
[332909997,1721675454873,-500.0,0.00016164,2]
[332909998,1721675454884,-500.0,0.00016164,2]
[332909999,1721675454894,-500.0,0.00016164,2]
[332910000,1721675454904,-647.3,0.00016164,2]
[332910001,1721675454914,-500.0,0.00016164,2]
[332910002,1721675454924,-437.2791538,0.00016164,2]
[332910003,1721675454935,-500.0,0.00016164,2]
[332910004,1721675454946,-500.0,0.00016164,2]
[332910005,1721675454957,-500.0,0.00016164,2]
[332910006,1721675454966,-430.91,0.00016164,2]
[332910007,1721675454976,-1886.51,0.00016164,2]
[332910008,1721675454987,-500.0,0.00016164,2]
[332910009,1721675454997,-151.0,0.00016164,2]
[332910010,1721675455007,-500.0,0.00016164,2]
[332910011,1721675455017,-650.38,0.00016164,2]
[332910012,1721675455026,-500.0,0.00016164,2]
[332910013,1721675455036,-500.0,0.00016169,2]
[332910014,1721675455045,-3000.0,0.0001617,2]
[332910015,1721675455055,-3000.0,0.0001618,2]
[332910016,1721675455066,-151.0,0.0001619,2]
[332910017,1721675455075,-151.0,0.0001619,2]
[332910018,1721675455085,-3000.0,0.0001619,2]
[332910019,1721675455095,-865.880804,0.000162,2]
[332910020,1721675455106,-865.880804,0.000162,2]
[332910021,1721675455118,-3000.0,0.000162,2]
[332910022,1721675455128,-151.0,0.0001621,2]
[332910023,1721675455146,-3000.0,0.0001621,2]
[332910024,1721675455157,-3000.0,0.0001622,2]
[332910025,1721675455166,-3000.0,0.0001623,2]
[332910026,1721675455177,-3000.0,0.0001624,2]
[332910027,1721675455189,-500.0,0.00016247,2]
[332910028,1721675455199,-500.0,0.00016247,2]
[332910029,1721675455209,-224.01,0.00016247,2]
[332910030,1721675455219,-3000.0,0.0001625,2]
[332910031,1721675455228,-500.0,0.00016255,2]
[332910032,1721675455238,-1770.65,0.00016255,2]
[332910033,1721675455250,-1100.38,0.00016255,2]
[332910034,1721675455260,-500.0,0.00016255,2]
[332910035,1721675455270,-500.0,0.00016255,2]
[332910036,1721675455279,-500.0,0.00016255,2]
[332910037,1721675455290,-500.0,0.00016255,2]
[332910038,1721675455299,-620.00000003,0.00016259,2]
[332910039,1721675455319,-3000.0,0.0001626,2]
[332910040,1721675455330,-3000.0,0.0001627,2]
[332910041,1721675455341,-500.0,0.00016279,2]
[332910042,1721675455351,-3000.0,0.0001628,2]
[332910043,1721675455362,-500.0,0.0001629,2]
[332910044,1721675455372,-3000.0,0.0001629,2]
[332910045,1721675455382,-3000.0,0.000163,2]
[332910046,1721675455394,-3000.0,0.0001631,2]
[332910047,1721675455404,-3000.0,0.0001632,2]
[332910048,1721675455413,-500.0,0.00016327,2]
[332910049,1721675455422,-169.97,0.00016327,2]
[332910050,1721675455431,-500.0,0.00016327,2]
[332910051,1721675455441,-500.0,0.00016327,2]
[332910052,1721675455450,-500.0,0.00016329,2]
[332910053,1721675455460,-500.0,0.00016329,2]
[332910054,1721675455469,-500.0,0.00016329,2]
[332910055,1721675455479,-500.0,0.00016329,2]
[332910056,1721675455488,-176.44195861,0.00016329,2]
[332910057,1721675455499,-500.0,0.00016329,2]
[332910058,1721675455508,-500.0,0.00016329,2]
[332910059,1721675455518,-5850.410323,0.0001633,2]
[332910060,1721675455528,-261.367456,0.0001633,2]
[332910061,1721675455537,-261.367456,0.0001633,2]
[332910062,1721675455547,-224.50165,0.0001633,2]
[332910063,1721675455556,-224.50165,0.0001633,2]
[332910064,1721675455566,-233.885454,0.0001633,2]
[332910065,1721675455578,-233.885454,0.0001633,2]
[332910066,1721675455589,-659.88,0.00016411,2]
[332910067,1721675455600,-627.65,0.00016411,2]
[332910068,1721675455610,-500.0,0.00016411,2]
[332910069,1721675455621,-500.0,0.00016417,2]
[332910070,1721675455630,-500.0,0.0001642,2]
[332910071,1721675455639,-517.82,0.0001642,2]
[332910072,1721675455648,-500.0,0.0001642,2]
[332910073,1721675455658,-500.0,0.0001642,2]
[332910074,1721675455668,-500.0,0.0001642,2]
[332910075,1721675455678,-381.86,0.0001642,2]
[332910076,1721675455688,-500.0,0.0001642,2]
[332910077,1721675455698,-500.0,0.0001642,2]
[332910078,1721675455708,-500.0,0.0001642,2]
[332910079,1721675455718,-500.0,0.0001642,2]
[332910080,1721675455728,-500.0,0.0001642,2]
[332910081,1721675455737,-500.0,0.0001642,2]
[332910082,1721675455748,-376.57,0.0001642,2]
[332910083,1721675455757,-216.68701201,0.0001642,2]
[332910084,1721675455767,-500.0,0.0001642,2]
[332910085,1721675455776,-519.77,0.0001642,2]
[332910086,1721675455786,-500.0,0.0001642,2]
[332910087,1721675455796,-500.0,0.0001642,2]
[332910088,1721675455806,-500.0,0.0001642,2]
[332910089,1721675455816,-188.15,0.0001642,2]
[332910090,1721675455826,-500.0,0.0001642,2]
[332910091,1721675455835,-251.798858,0.0001642,2]
[332910092,1721675455845,-151.0,0.0001642,2]
[332910093,1721675455855,-151.0,0.0001642,2]
[332910094,1721675455865,-251.798858,0.0001642,2]
[332910095,1721675455874,-214.054928,0.0001642,2]
[332910096,1721675455884,-500.0,0.00016425,2]
[332910097,1721675455894,-500.0,0.00016426,2]
[332910098,1721675455904,-500.0,0.00016426,2]
[332910099,1721675455914,-500.0,0.00016426,2]
[332910100,1721675455924,-500.0,0.00016426,2]
[332910101,1721675455933,-500.0,0.00016426,2]
[332910102,1721675455943,-500.0,0.00016426,2]
[332910103,1721675455954,-500.0,0.00016427,2]
[332910104,1721675455964,-510.64,0.00016427,2]
[332910105,1721675455974,-500.0,0.00016427,2]
[332910106,1721675455984,-500.0,0.00016427,2]
[332910107,1721675455994,-500.0,0.00016427,2]
[332910108,1721675456004,-524.97,0.00016427,2]
[332910109,1721675456016,-500.0,0.00016427,2]
[332910110,1721675456029,-406.3,0.00016427,2]
[332910111,1721675456041,-500.0,0.00016427,2]
[332910112,1721675456052,-307.24,0.00016427,2]
[332910113,1721675456063,-500.0,0.00016427,2]
[332910114,1721675456074,-500.0,0.00016427,2]
[332910115,1721675456086,-500.0,0.00016428,2]
[332910116,1721675456096,-365.28,0.00016428,2]
[332910117,1721675456106,-208.93,0.00016428,2]
[332910118,1721675456117,-500.0,0.00016428,2]
[332910119,1721675456127,-500.0,0.00016428,2]
[332910120,1721675456142,-500.0,0.00016428,2]
[332910121,1721675456154,-500.0,0.00016428,2]
[332910122,1721675456165,-500.0,0.00016428,2]
[332910123,1721675456178,-624.09,0.00016428,2]
[332910124,1721675456191,-500.0,0.00016428,2]
[332910125,1721675456202,-189.46,0.00016428,2]
[332910126,1721675456213,-500.0,0.00016428,2]
[332910127,1721675456224,-178.7,0.00016428,2]
[332910128,1721675456235,-304.14,0.00016436,2]
[332910129,1721675456249,-493.8,0.00016436,2]
[332910130,1721675456260,-485.5,0.00016436,2]
[332910131,1721675456273,-539.22,0.00016437,2]
[332910132,1721675456283,-500.0,0.00016437,2]
[332910133,1721675456293,-1280.12,0.00016437,2]
[332910134,1721675456303,-838.19,0.00016437,2]
[332910135,1721675456313,-500.0,0.00016437,2]
[332910136,1721675456323,-500.0,0.00016437,2]
[332910137,1721675456334,-500.0,0.00016437,2]
[332910138,1721675456346,-491.72514018,0.00016437,2]
[332910139,1721675456357,-789.11,0.00016437,2]
[332910140,1721675456368,-500.0,0.00016438,2]
[332910141,1721675456378,-500.0,0.00016438,2]
[332910142,1721675456388,-500.0,0.00016438,2]
[332910143,1721675456400,-683.88,0.00016438,2]
[332910144,1721675456411,-2306.83,0.00016438,2]
[332910145,1721675456421,-515.20716483,0.00016438,2]
[332910146,1721675456431,-565.53406262,0.00016438,2]
[332910147,1721675456441,-500.0,0.00016438,2]
[332910148,1721675456451,-500.0,0.00016438,2]
[332910149,1721675456461,-500.0,0.00016438,2]
[332910150,1721675456471,-500.0,0.00016438,2]
[332910151,1721675456480,-539.84,0.00016438,2]
[332910152,1721675456490,-2033.74,0.00016438,2]
[332910153,1721675456501,-500.0,0.00016438,2]
[332910154,1721675456511,-500.0,0.00016438,2]
[332910155,1721675456521,-500.0,0.00016438,2]
[332910156,1721675456531,-500.0,0.00016438,2]
[332910157,1721675456541,-1177.69,0.00016438,2]
[332910158,1721675456551,-735.43,0.00016438,2]
[332910159,1721675456561,-554.94,0.00016438,2]
[332910160,1721675456571,-500.0,0.00016438,2]
[332910161,1721675456581,-549.02,0.00016438,2]
[332910162,1721675456591,-1031.38,0.00016438,2]
[332910163,1721675456601,-284.58392291,0.00016438,2]
[332910164,1721675456611,-500.0,0.00016438,2]
[332910165,1721675456620,-714.38,0.00016438,2]
[332910166,1721675456630,-369.05255322,0.00016438,2]
[332910167,1721675456641,-500.0,0.00016438,2]
[332910168,1721675456652,-505.12,0.00016438,2]
[332910169,1721675456662,-1365.28,0.00016438,2]
[332910170,1721675456674,-500.0,0.00016438,2]
[332910171,1721675456685,-647.07,0.00016438,2]
[332910172,1721675456695,-589.48,0.00016438,2]
[332910173,1721675456706,-500.0,0.00016438,2]
[332910174,1721675456717,-768.59,0.00016438,2]
[332910175,1721675456728,-647.55,0.00016438,2]
[332910176,1721675456740,-500.0,0.00016438,2]
[332910177,1721675456752,-953.2,0.00016438,2]
[332910178,1721675456762,-500.0,0.00016438,2]
[332910179,1721675456773,-874.1,0.00016438,2]
[332910180,1721675456784,-519.25,0.00016438,2]
[332910181,1721675456795,-884.66,0.00016438,2]
[332910182,1721675456805,-1057.52,0.00016438,2]
[332910183,1721675456816,-1889.7,0.00016438,2]
[332910184,1721675456830,-500.0,0.00016438,2]
[332910185,1721675456842,-1132.04,0.00016438,2]
[332910186,1721675456853,-666.49,0.00016438,2]
[332910187,1721675456863,-668.28,0.00016438,2]
[332910188,1721675456873,-500.0,0.00016438,2]
[332910189,1721675456884,-500.0,0.00016438,2]
[332910190,1721675456896,-1624.09,0.00016438,2]
[332910191,1721675456907,-976.27,0.00016438,2]
[332910192,1721675456918,-642.19,0.00016438,2]
[332910193,1721675456929,-552.84,0.00016438,2]
[332910194,1721675456940,-837.86,0.00016438,2]
[332910195,1721675456951,-379.82309372,0.00016438,2]
[332910196,1721675456964,-838.14,0.00016438,2]
[332910197,1721675456974,-500.0,0.00016438,2]
[332910198,1721675456984,-2035.58,0.00016438,2]
[332910199,1721675456995,-554.09,0.00016438,2]
[332910200,1721675457006,-500.0,0.00016438,2]
[332910201,1721675457016,-1328.22,0.00016438,2]
[332910202,1721675457027,-500.0,0.00016438,2]
[332910203,1721675457037,-506.13,0.00016438,2]
[332910204,1721675457047,-1470.26,0.00016438,2]
[332910205,1721675457058,-2054.5,0.00016438,2]
[332910206,1721675457069,-628.44,0.00016438,2]
[332910207,1721675457079,-500.0,0.00016438,2]
[332910208,1721675457090,-500.0,0.00016438,2]
[332910209,1721675457100,-700.9,0.00016438,2]
[332910210,1721675457110,-500.0,0.00016438,2]
[332910211,1721675457121,-500.0,0.00016438,2]
[332910212,1721675457132,-630.92,0.00016438,2]
[332910213,1721675457144,-1078.09,0.00016438,2]
[332910214,1721675457154,-816.07,0.00016438,2]
[332910215,1721675457164,-500.0,0.00016438,2]
[332910216,1721675457174,-627.68,0.00016438,2]
[332910217,1721675457184,-604.38,0.00016438,2]
[332910218,1721675457196,-649.28,0.00016438,2]
[332910219,1721675457206,-2006.04,0.00016438,2]
[332910220,1721675457218,-500.0,0.00016438,2]
[332910221,1721675457229,-500.0,0.00016438,2]
[332910222,1721675457240,-527.61,0.00016438,2]
[332910223,1721675457252,-500.0,0.00016438,2]
[332910224,1721675457262,-500.0,0.00016438,2]
[332910225,1721675457273,-500.0,0.00016438,2]
[332910226,1721675457284,-666.18,0.00016438,2]
[332910227,1721675457295,-859.08,0.00016438,2]
[332910228,1721675457305,-3069.31,0.00016438,2]
[332910229,1721675457317,-500.0,0.00016438,2]
[332910230,1721675457327,-500.0,0.00016438,2]
[332910231,1721675457337,-1517.82,0.00016438,2]
[332910232,1721675457347,-1176.08,0.00016438,2]
[332910233,1721675457357,-500.0,0.00016438,2]
[332910234,1721675457368,-506.02846971,0.00016438,2]
[332910235,1721675457378,-500.0,0.00016438,2]
[332910236,1721675457390,-500.0,0.00016438,2]
[332910237,1721675457401,-1445.42,0.00016438,2]
[332910238,1721675457412,-500.0,0.00016438,2]
[332910239,1721675457424,-500.0,0.00016438,2]
[332910240,1721675457434,-2045.09,0.00016438,2]
[332910241,1721675457444,-771.46,0.00016438,2]
[332910242,1721675457454,-500.0,0.00016438,2]
[332910243,1721675457465,-500.0,0.00016438,2]
[332910244,1721675457487,-500.0,0.00016438,2]
[332910245,1721675457499,-930.2,0.00016438,2]
[332910246,1721675457509,-684.13,0.00016438,2]
[332910247,1721675457521,-500.0,0.00016438,2]
[332910248,1721675457532,-687.94,0.00016438,2]
[332910249,1721675457543,-1866.61,0.00016438,2]
[332910250,1721675457554,-1337.16,0.00016438,2]
[332910251,1721675457565,-565.6,0.00016438,2]
[332910252,1721675457576,-561.68,0.00016438,2]
[332910253,1721675457587,-723.1,0.00016438,2]
[332910254,1721675457599,-500.0,0.00016438,2]
[332910255,1721675457609,-1520.82,0.00016438,2]
[332910256,1721675457621,-1951.93,0.00016438,2]
[332910257,1721675457631,-2114.25,0.00016438,2]
[332910258,1721675457642,-1164.77,0.00016438,2]
[332910259,1721675457652,-500.0,0.00016438,2]